[Event "Early-Titled-Tuesday-Blitz-March-19-2024"]
[Site "Chess.com"]
[Date "2024.03.19"]
[Round "4"]
[White "Nuvas"]
[Black "tetrix83"]
[Result "1-0"]
[WhiteElo "2832"]
[BlackElo "2602"]
[TimeControl "180+1"]
[EndTime "8:41:36 PDT"]
[Termination "Nuvas won on time"]

1. d4 {[%clk 0:03:00.4]} 1... Nf6 {[%clk 0:02:57.8]} 2. c4 {[%clk 0:03:00.9]}
2... g6 {[%clk 0:02:58]} 3. Nc3 {[%clk 0:03:01]} 3... Bg7 {[%clk 0:02:57.9]} 4.
e4 {[%clk 0:03:01.2]} 4... d6 {[%clk 0:02:58.4]} 5. Be2 {[%clk 0:03:01.7]} 5...
O-O {[%clk 0:02:58.4]} 6. Bg5 {[%clk 0:03:02.4]} 6... Na6 {[%clk 0:02:52.4]} 7.
Qd2 {[%clk 0:03:00.5]} 7... e5 {[%clk 0:02:48]} 8. d5 {[%clk 0:03:00.4]} 8... c6
{[%clk 0:02:48.4]} 9. h4 {[%clk 0:02:48.5]} 9... cxd5 {[%clk 0:02:45.4]} 10.
cxd5 {[%clk 0:02:48.4]} 10... Bd7 {[%clk 0:02:41.6]} 11. h5 {[%clk 0:02:39.1]}
11... Nc5 {[%clk 0:02:32.8]} 12. f3 {[%clk 0:02:35.5]} 12... a5 {[%clk
0:02:25.4]} 13. Nh3 {[%clk 0:02:18]} 13... b5 {[%clk 0:02:16.6]} 14. h6 {[%clk
0:02:10.7]} 14... Bh8 {[%clk 0:02:15.9]} 15. Nxb5 {[%clk 0:01:42.9]} 15... Qb6
{[%clk 0:01:46.3]} 16. Nc3 {[%clk 0:01:33.4]} 16... Rfb8 {[%clk 0:01:46.2]} 17.
Rb1 {[%clk 0:01:31.9]} 17... a4 {[%clk 0:01:44]} 18. Be3 {[%clk 0:01:30]} 18...
Nh5 {[%clk 0:01:39.6]} 19. Kf2 {[%clk 0:00:56.1]} 19... Nf4 {[%clk 0:01:29.5]}
20. Ng1 {[%clk 0:00:50.7]} 20... f5 {[%clk 0:01:19.3]} 21. g3 {[%clk 0:00:47]}
21... fxe4 {[%clk 0:01:13.6]} 22. Nxe4 {[%clk 0:00:47.2]} 22... Nxe2 {[%clk
0:01:04.1]} 23. Nxc5 {[%clk 0:00:38.7]} 23... dxc5 {[%clk 0:00:58.3]} 24. Nxe2
{[%clk 0:00:38.7]} 24... Bf5 {[%clk 0:00:56.1]} 25. Rbd1 {[%clk 0:00:31.9]}
25... Qxb2 {[%clk 0:00:53.7]} 26. g4 {[%clk 0:00:32.4]} 26... Bd7 {[%clk
0:00:39]} 27. Ng3 {[%clk 0:00:32.5]} 27... a3 {[%clk 0:00:18.5]} 28. Ne4 {[%clk
0:00:29.9]} 28... Rf8 {[%clk 0:00:18.1]} 29. Kg2 {[%clk 0:00:29.8]} 29... Rab8
{[%clk 0:00:13]} 30. Bxc5 {[%clk 0:00:26.8]} 30... Rfc8 {[%clk 0:00:10.9]} 31.
Rhe1 {[%clk 0:00:24.5]} 31... Ba4 {[%clk 0:00:10.5]} 32. Rc1 {[%clk 0:00:23.3]}
32... Qxd2+ {[%clk 0:00:08.1]} 33. Nxd2 {[%clk 0:00:23.4]} 33... Rb2 {[%clk
0:00:09]} 34. Be3 {[%clk 0:00:11.7]} 34... Rcc2 {[%clk 0:00:06.3]} 35. Rxc2
{[%clk 0:00:11.9]} 35... Rxc2 {[%clk 0:00:07.2]} 36. Rb1 {[%clk 0:00:11.3]}
36... Rb2 {[%clk 0:00:06.6]} 37. Rc1 {[%clk 0:00:10.6]} 37... Rc2 {[%clk
0:00:06.9]} 38. Rxc2 {[%clk 0:00:10.8]} 38... Bxc2 {[%clk 0:00:07.4]} 39. Nc4
{[%clk 0:00:11.1]} 39... Bb1 {[%clk 0:00:06.7]} 40. d6 {[%clk 0:00:11.7]} 40...
Kf7 {[%clk 0:00:05.8]} 41. Nxa3 {[%clk 0:00:09.2]} 41... Bxa2 {[%clk 0:00:05.2]}
42. Nb5 {[%clk 0:00:09.7]} 42... Ke6 {[%clk 0:00:04.8]} 43. Bc5 {[%clk
0:00:08.5]} 43... Bc4 {[%clk 0:00:02.4]} 44. Nc7+ {[%clk 0:00:07.4]} 44... Kd7
{[%clk 0:00:02.8]} 45. Kg3 {[%clk 0:00:07.5]} 45... Bf6 {[%clk 0:00:02.6]} 46.
Bb4 {[%clk 0:00:04.5]} 46... Bg5 {[%clk 0:00:02.7]} 47. Bc5 {[%clk 0:00:04.2]}
47... Bf4+ {[%clk 0:00:02.8]} 48. Kf2 {[%clk 0:00:04.9]} 48... Bxh6 {[%clk
0:00:03.3]} 49. Na8 {[%clk 0:00:04.5]} 49... Kc6 {[%clk 0:00:02.3]} 50. Nb6
{[%clk 0:00:04.6]} 50... Be6 {[%clk 0:00:02.8]} 51. Na4 {[%clk 0:00:04.3]} 51...
Bf8 {[%clk 0:00:02.4]} 52. Bb4 {[%clk 0:00:04.6]} 52... Bxd6 {[%clk 0:00:02.5]}
53. Bxd6 {[%clk 0:00:05.5]} 53... Kxd6 {[%clk 0:00:03.4]} 54. Nc3 {[%clk
0:00:06.1]} 54... Ke7 {[%clk 0:00:03.7]} 55. Ne4 {[%clk 0:00:06.5]} 55... Bd5
{[%clk 0:00:03.6]} 56. Nc3 {[%clk 0:00:06.9]} 56... Bc6 {[%clk 0:00:03.7]} 57.
Kg3 {[%clk 0:00:07.5]} 57... Ke6 {[%clk 0:00:04.6]} 58. Na4 {[%clk 0:00:07.4]}
58... h6 {[%clk 0:00:04.8]} 59. Nc5+ {[%clk 0:00:07.7]} 59... Kd5 {[%clk
0:00:05.4]} 60. Nd3 {[%clk 0:00:08]} 60... Ke6 {[%clk 0:00:05.5]} 61. Nc5+
{[%clk 0:00:08.3]} 61... Kf6 {[%clk 0:00:05.7]} 62. Nd3 {[%clk 0:00:08]} 62...
e4 {[%clk 0:00:06]} 63. fxe4 {[%clk 0:00:08.5]} 63... Bxe4 {[%clk 0:00:06.7]}
64. Nf2 {[%clk 0:00:09.4]} 64... Bd5 {[%clk 0:00:06.8]} 65. Kf4 {[%clk 0:00:10]}
65... g5+ {[%clk 0:00:06.8]} 66. Kg3 {[%clk 0:00:10.4]} 66... Ke5 {[%clk
0:00:07.4]} 67. Nd3+ {[%clk 0:00:10.3]} 67... Kd4 {[%clk 0:00:07.9]} 68. Nb4
{[%clk 0:00:10.8]} 68... Be6 {[%clk 0:00:07.8]} 69. Nc2+ {[%clk 0:00:11.2]}
69... Kd3 {[%clk 0:00:07.9]} 70. Ne1+ {[%clk 0:00:11.9]} 70... Ke3 {[%clk
0:00:08.2]} 71. Nf3 {[%clk 0:00:12.5]} 71... Ke4 {[%clk 0:00:08.7]} 72. Nd2+
{[%clk 0:00:12.6]} 72... Kd3 {[%clk 0:00:08.3]} 73. Nf3 {[%clk 0:00:12.4]} 73...
Ke4 {[%clk 0:00:07.1]} 74. Nd2+ {[%clk 0:00:12.7]} 74... Kd5 {[%clk 0:00:06.6]}
75. Nf3 {[%clk 0:00:12.6]} 75... Bd7 {[%clk 0:00:07]} 76. Ne1 {[%clk 0:00:12.9]}
76... Bb5 {[%clk 0:00:06.9]} 77. Nc2 {[%clk 0:00:12.9]} 77... Ke4 {[%clk
0:00:05.8]} 78. Ne1 {[%clk 0:00:13.3]} 78... Ba4 {[%clk 0:00:04.8]} 79. Nf3
{[%clk 0:00:13.5]} 79... Bd1 {[%clk 0:00:04.1]} 80. Nd2+ {[%clk 0:00:12.8]}
80... Kd4 {[%clk 0:00:01.5]} 81. Nf1 {[%clk 0:00:12.4]} 1-0

[Event "Early-Titled-Tuesday-Blitz-March-19-2024"]
[Site "Chess.com"]
[Date "2024.03.19"]
[Round "4"]
[White "Gabix_94"]
[Black "cande_francisco"]
[Result "0-1"]
[WhiteElo "2759"]
[BlackElo "2531"]
[TimeControl "180+1"]
[EndTime "8:41:36 PDT"]
[Termination "cande_francisco won by checkmate"]

1. d4 {[%clk 0:03:00.9]} 1... Nf6 {[%clk 0:02:59.2]} 2. Nc3 {[%clk 0:03:01.5]}
2... d5 {[%clk 0:02:59]} 3. Bf4 {[%clk 0:03:02]} 3... e6 {[%clk 0:02:59]} 4. Nb5
{[%clk 0:03:01.3]} 4... Na6 {[%clk 0:02:59]} 5. e3 {[%clk 0:03:01.5]} 5... Be7
{[%clk 0:02:56.9]} 6. h4 {[%clk 0:03:01.6]} 6... c6 {[%clk 0:02:22.3]} 7. Nc3
{[%clk 0:02:59.9]} 7... Qb6 {[%clk 0:02:22.7]} 8. Rb1 {[%clk 0:02:58.4]} 8... c5
{[%clk 0:02:18]} 9. Nf3 {[%clk 0:02:55.9]} 9... cxd4 {[%clk 0:02:14.4]} 10. exd4
{[%clk 0:02:54.6]} 10... Bd7 {[%clk 0:02:14.7]} 11. Ne5 {[%clk 0:02:52.4]} 11...
Rc8 {[%clk 0:02:05.6]} 12. h5 {[%clk 0:02:48.3]} 12... h6 {[%clk 0:01:54.2]} 13.
Be2 {[%clk 0:02:38.1]} 13... Nc7 {[%clk 0:01:04.6]} 14. O-O {[%clk 0:02:29.7]}
14... a6 {[%clk 0:00:58.6]} 15. Bg3 {[%clk 0:02:08.1]} 15... Bb5 {[%clk
0:00:52.8]} 16. Nxb5 {[%clk 0:02:07.1]} 16... Nxb5 {[%clk 0:00:53.7]} 17. c3
{[%clk 0:02:06.6]} 17... Nd6 {[%clk 0:00:53.4]} 18. Bh4 {[%clk 0:02:03.1]} 18...
Qa5 {[%clk 0:00:43.9]} 19. Bd3 {[%clk 0:01:57.1]} 19... Rc7 {[%clk 0:00:32.7]}
20. Re1 {[%clk 0:01:52.7]} 20... O-O {[%clk 0:00:32.3]} 21. a3 {[%clk
0:01:44.8]} 21... Nfe4 {[%clk 0:00:27.8]} 22. Bxe7 {[%clk 0:01:41.1]} 22... Rxe7
{[%clk 0:00:28.7]} 23. f3 {[%clk 0:01:41.4]} 23... Nf6 {[%clk 0:00:25.6]} 24. g4
{[%clk 0:01:39.4]} 24... Nd7 {[%clk 0:00:21.3]} 25. Kg2 {[%clk 0:01:34.7]} 25...
Qc7 {[%clk 0:00:19.2]} 26. Bc2 {[%clk 0:01:30.2]} 26... Nc4 {[%clk 0:00:15.4]}
27. Qd3 {[%clk 0:01:29]} 27... Nf6 {[%clk 0:00:15.1]} 28. Re2 {[%clk 0:01:24.1]}
28... Rc8 {[%clk 0:00:14.9]} 29. Kh3 {[%clk 0:01:19.3]} 29... b5 {[%clk
0:00:14.6]} 30. a4 {[%clk 0:01:16.8]} 30... Kf8 {[%clk 0:00:14.1]} 31. axb5
{[%clk 0:01:15]} 31... axb5 {[%clk 0:00:15]} 32. Ra1 {[%clk 0:01:15.3]} 32...
Rb8 {[%clk 0:00:13.3]} 33. b3 {[%clk 0:01:13.9]} 33... Nd6 {[%clk 0:00:12.8]}
34. Ra6 {[%clk 0:01:08.1]} 34... Rb6 {[%clk 0:00:10.3]} 35. Ra8+ {[%clk
0:01:06.5]} 35... Re8 {[%clk 0:00:09]} 36. Ra2 {[%clk 0:01:05.6]} 36... Rc8
{[%clk 0:00:08.6]} 37. Re3 {[%clk 0:01:02.2]} 37... Nde8 {[%clk 0:00:05.9]} 38.
Bb1 {[%clk 0:01:00]} 38... Nd6 {[%clk 0:00:06]} 39. Qd2 {[%clk 0:00:55.7]} 39...
Rcb8 {[%clk 0:00:05.4]} 40. Rc2 {[%clk 0:00:52.7]} 40... Qd8 {[%clk 0:00:05]}
41. Rc1 {[%clk 0:00:48.7]} 41... Rc8 {[%clk 0:00:05.5]} 42. Bd3 {[%clk 0:00:49]}
42... Rbb8 {[%clk 0:00:05.7]} 43. Be2 {[%clk 0:00:48.9]} 43... Qb6 {[%clk
0:00:05.8]} 44. Kg2 {[%clk 0:00:46]} 44... Ke7 {[%clk 0:00:06.4]} 45. Bd3 {[%clk
0:00:45]} 45... b4 {[%clk 0:00:06]} 46. c4 {[%clk 0:00:37.4]} 46... Qxd4 {[%clk
0:00:05.6]} 47. Qe2 {[%clk 0:00:37.2]} 47... dxc4 {[%clk 0:00:05.3]} 48. Bxc4
{[%clk 0:00:37.1]} 48... Nxc4 {[%clk 0:00:04.6]} 49. bxc4 {[%clk 0:00:35.5]}
49... b3 {[%clk 0:00:04.3]} 50. Rd1 {[%clk 0:00:33.4]} 50... Qc5 {[%clk
0:00:03.8]} 51. f4 {[%clk 0:00:16.9]} 51... b2 {[%clk 0:00:04.1]} 52. Rb1 {[%clk
0:00:17.6]} 52... Qc7 {[%clk 0:00:02.9]} 53. g5 {[%clk 0:00:16.3]} 53... Qb7+
{[%clk 0:00:03.4]} 54. Kh3 {[%clk 0:00:16.4]} 54... Ne8 {[%clk 0:00:03.6]} 55.
g6 {[%clk 0:00:16.3]} 55... f6 {[%clk 0:00:03.6]} 56. Nd3 {[%clk 0:00:16.8]}
56... Rc6 {[%clk 0:00:03.5]} 57. Rxb2 {[%clk 0:00:16.7]} 57... Qc7 {[%clk
0:00:03.4]} 58. Rxb8 {[%clk 0:00:16.8]} 58... Qxb8 {[%clk 0:00:04.3]} 59. Qf3
{[%clk 0:00:14.6]} 59... Qc8 {[%clk 0:00:04.9]} 60. f5 {[%clk 0:00:14.6]} 60...
e5 {[%clk 0:00:05.1]} 61. Nb4 {[%clk 0:00:14.4]} 61... Rc5 {[%clk 0:00:05]} 62.
Nd5+ {[%clk 0:00:14.5]} 62... Kf8 {[%clk 0:00:05.9]} 63. Re4 {[%clk 0:00:12.7]}
63... Nd6 {[%clk 0:00:06.4]} 64. Rg4 {[%clk 0:00:12.5]} 64... Qxf5 {[%clk
0:00:06.9]} 65. Qa3 {[%clk 0:00:12.9]} 65... Qc8 {[%clk 0:00:06.2]} 66. Qa7
{[%clk 0:00:11.1]} 66... Rxc4 {[%clk 0:00:05]} 67. Qe7+ {[%clk 0:00:10.7]} 67...
Kg8 {[%clk 0:00:05.7]} 68. Nxf6+ {[%clk 0:00:11]} 68... Kh8 {[%clk 0:00:03.9]}
69. Nd7 {[%clk 0:00:08.9]} 69... Rxg4 {[%clk 0:00:03.3]} 70. Kxg4 {[%clk
0:00:09.8]} 70... Ne4 {[%clk 0:00:02.9]} 71. Kf5 {[%clk 0:00:07.7]} 71... Ng3+
{[%clk 0:00:01.4]} 72. Kxe5 {[%clk 0:00:07.9]} 72... Nxh5 {[%clk 0:00:02.1]} 73.
Nc5 {[%clk 0:00:06.9]} 73... Qg8 {[%clk 0:00:02.6]} 74. Ne6 {[%clk 0:00:06.4]}
74... Nf6 {[%clk 0:00:03.2]} 75. Kf4 {[%clk 0:00:04.3]} 75... Nd5+ {[%clk
0:00:03.3]} 76. Ke5 {[%clk 0:00:04.6]} 76... Nxe7 {[%clk 0:00:04.2]} 77. Nxg7
{[%clk 0:00:03.8]} 77... Qd5+ {[%clk 0:00:04.8]} 78. Kf6 {[%clk 0:00:04]} 78...
Qd6+ {[%clk 0:00:05.4]} 79. Ne6 {[%clk 0:00:04.3]} 79... Nd5+ {[%clk 0:00:06.3]}
80. Kf7 {[%clk 0:00:04.6]} 80... Qe7# {[%clk 0:00:07.1]} 0-1

[Event "Early-Titled-Tuesday-Blitz-March-19-2024"]
[Site "Chess.com"]
[Date "2024.03.19"]
[Round "4"]
[White "AryanTari"]
[Black "GodzillaChessYoutube"]
[Result "1-0"]
[WhiteElo "3004"]
[BlackElo "2660"]
[TimeControl "180+1"]
[EndTime "8:41:44 PDT"]
[Termination "AryanTari won by checkmate"]

1. e4 {[%clk 0:03:00.9]} 1... e5 {[%clk 0:02:59.9]} 2. Nf3 {[%clk 0:03:00.7]}
2... Nc6 {[%clk 0:03:00.4]} 3. Bb5 {[%clk 0:03:00.5]} 3... a6 {[%clk 0:03:00.9]}
4. Ba4 {[%clk 0:03:00.6]} 4... d6 {[%clk 0:03:01.8]} 5. Bxc6+ {[%clk 0:02:53.4]}
5... bxc6 {[%clk 0:03:01.2]} 6. d4 {[%clk 0:02:54.1]} 6... f6 {[%clk 0:03:01.3]}
7. c4 {[%clk 0:02:49.6]} 7... Bg4 {[%clk 0:02:58.5]} 8. Be3 {[%clk 0:02:49.4]}
8... Qb8 {[%clk 0:02:57.3]} 9. b3 {[%clk 0:02:45.8]} 9... Ne7 {[%clk 0:02:44.2]}
10. Nbd2 {[%clk 0:02:41]} 10... Ng6 {[%clk 0:02:39.7]} 11. h3 {[%clk 0:02:40.3]}
11... Bd7 {[%clk 0:02:38.7]} 12. Qc2 {[%clk 0:02:22.5]} 12... Be7 {[%clk
0:02:37.3]} 13. c5 {[%clk 0:02:21.7]} 13... O-O {[%clk 0:02:24.6]} 14. cxd6
{[%clk 0:02:21.7]} 14... cxd6 {[%clk 0:02:24.2]} 15. O-O {[%clk 0:02:22.4]}
15... Kh8 {[%clk 0:01:55.2]} 16. Rfc1 {[%clk 0:01:44.3]} 16... d5 {[%clk
0:01:27.2]} 17. dxe5 {[%clk 0:01:30.9]} 17... fxe5 {[%clk 0:01:23.1]} 18. Bc5
{[%clk 0:01:31.1]} 18... Qe8 {[%clk 0:01:08.8]} 19. Bxe7 {[%clk 0:01:29.2]}
19... Qxe7 {[%clk 0:01:09.7]} 20. Qc5 {[%clk 0:01:29.5]} 20... Qf7 {[%clk
0:01:04.6]} 21. Rf1 {[%clk 0:01:11.8]} 21... Rae8 {[%clk 0:01:00.3]} 22. Rae1
{[%clk 0:01:07]} 22... Nf4 {[%clk 0:00:52.8]} 23. exd5 {[%clk 0:00:58.7]} 23...
Nd3 {[%clk 0:00:38.8]} 24. Qd6 {[%clk 0:00:46.8]} 24... Nxe1 {[%clk 0:00:38.6]}
25. Rxe1 {[%clk 0:00:47.7]} 25... Qxd5 {[%clk 0:00:38.6]} 26. Qxd5 {[%clk
0:00:47.6]} 26... cxd5 {[%clk 0:00:39.5]} 27. Nxe5 {[%clk 0:00:48.3]} 27... Bf5
{[%clk 0:00:32.4]} 28. f4 {[%clk 0:00:46.8]} 28... Kg8 {[%clk 0:00:32.2]} 29. g4
{[%clk 0:00:44.6]} 29... Bc8 {[%clk 0:00:26.6]} 30. f5 {[%clk 0:00:43.8]} 30...
Re7 {[%clk 0:00:21.3]} 31. Ndf3 {[%clk 0:00:42.7]} 31... Rfe8 {[%clk 0:00:21.9]}
32. Rc1 {[%clk 0:00:42.7]} 32... Bb7 {[%clk 0:00:20.8]} 33. Kf2 {[%clk
0:00:35.4]} 33... Rxe5 {[%clk 0:00:20.7]} 34. Nxe5 {[%clk 0:00:36.3]} 34... Rxe5
{[%clk 0:00:20.2]} 35. Rc7 {[%clk 0:00:37]} 35... d4 {[%clk 0:00:13.2]} 36. Rxb7
{[%clk 0:00:36.3]} 36... d3 {[%clk 0:00:12.7]} 37. Rd7 {[%clk 0:00:29.2]} 37...
Re2+ {[%clk 0:00:13.2]} 38. Kf3 {[%clk 0:00:29.8]} 38... Rh2 {[%clk 0:00:07.6]}
39. Rxd3 {[%clk 0:00:28.5]} 39... Rxa2 {[%clk 0:00:06]} 40. g5 {[%clk
0:00:27.5]} 40... Kf7 {[%clk 0:00:05.5]} 41. Rd7+ {[%clk 0:00:27.5]} 41... Kf8
{[%clk 0:00:05.7]} 42. f6 {[%clk 0:00:21.6]} 42... gxf6 {[%clk 0:00:05.1]} 43.
gxf6 {[%clk 0:00:22.5]} 43... Ra5 {[%clk 0:00:03.4]} 44. Kf4 {[%clk 0:00:21.5]}
44... Rh5 {[%clk 0:00:04]} 45. Kg4 {[%clk 0:00:17.7]} 45... Rh6 {[%clk
0:00:03.7]} 46. Rd6 {[%clk 0:00:15.8]} 46... a5 {[%clk 0:00:03.5]} 47. Ra6
{[%clk 0:00:10.6]} 47... Kf7 {[%clk 0:00:03.5]} 48. Rxa5 {[%clk 0:00:11]} 48...
Rg6+ {[%clk 0:00:03.6]} 49. Kf4 {[%clk 0:00:10.8]} 49... Rg1 {[%clk 0:00:02.7]}
50. Ra7+ {[%clk 0:00:08.3]} 50... Kxf6 {[%clk 0:00:03.1]} 51. Rxh7 {[%clk
0:00:09]} 51... Rb1 {[%clk 0:00:03.6]} 52. Rh6+ {[%clk 0:00:08.3]} 52... Kg7
{[%clk 0:00:03.2]} 53. Rb6 {[%clk 0:00:09.2]} 53... Rh1 {[%clk 0:00:03.1]} 54.
Kg4 {[%clk 0:00:08.8]} 54... Rg1+ {[%clk 0:00:04]} 55. Kh5 {[%clk 0:00:09.2]}
55... Rh1 {[%clk 0:00:03.7]} 56. h4 {[%clk 0:00:09]} 56... Rd1 {[%clk
0:00:04.6]} 57. b4 {[%clk 0:00:09.4]} 57... Rd5+ {[%clk 0:00:05]} 58. Kg4 {[%clk
0:00:10.1]} 58... Rd4+ {[%clk 0:00:05.6]} 59. Kg5 {[%clk 0:00:09.7]} 59... Rd5+
{[%clk 0:00:06.1]} 60. Kf4 {[%clk 0:00:10.3]} 60... Rd4+ {[%clk 0:00:06.9]} 61.
Ke5 {[%clk 0:00:10.9]} 61... Rxh4 {[%clk 0:00:07]} 62. b5 {[%clk 0:00:09.8]}
62... Kf7 {[%clk 0:00:07.5]} 63. Kd6 {[%clk 0:00:10.3]} 63... Rc4 {[%clk
0:00:06.2]} 64. Rc6 {[%clk 0:00:10.3]} 64... Rd4+ {[%clk 0:00:05.7]} 65. Kc7
{[%clk 0:00:10.5]} 65... Ke7 {[%clk 0:00:05.6]} 66. b6 {[%clk 0:00:09.6]} 66...
Rd7+ {[%clk 0:00:06.2]} 67. Kb8 {[%clk 0:00:10.1]} 67... Rd2 {[%clk 0:00:06.7]}
68. b7 {[%clk 0:00:10]} 68... Ra2 {[%clk 0:00:06.7]} 69. Kc7 {[%clk 0:00:09.8]}
69... Ra7 {[%clk 0:00:04.8]} 70. Kb6 {[%clk 0:00:08.7]} 70... Ra4 {[%clk
0:00:01.4]} 71. Rc5 {[%clk 0:00:08.7]} 71... Rb4+ {[%clk 0:00:02.3]} 72. Rb5
{[%clk 0:00:09]} 72... Rc4 {[%clk 0:00:02]} 73. b8=Q {[%clk 0:00:08.4]} 73...
Rc8 {[%clk 0:00:01.3]} 74. Qe5+ {[%clk 0:00:05.7]} 74... Kf7 {[%clk 0:00:02.2]}
75. Qf5+ {[%clk 0:00:05.4]} 75... Kg8 {[%clk 0:00:03.1]} 76. Qg6+ {[%clk
0:00:05.7]} 76... Kh8 {[%clk 0:00:03.1]} 77. Rh5# {[%clk 0:00:01.5]} 1-0

[Event "Early-Titled-Tuesday-Blitz-March-19-2024"]
[Site "Chess.com"]
[Date "2024.03.19"]
[Round "4"]
[White "Andrei_Skvortsov"]
[Black "ccccvhhhj"]
[Result "1-0"]
[WhiteElo "2742"]
[BlackElo "2474"]
[TimeControl "180+1"]
[EndTime "8:41:45 PDT"]
[Termination "Andrei_Skvortsov won by resignation"]

1. e4 {[%clk 0:03:00.9]} 1... e6 {[%clk 0:03:00.4]} 2. d4 {[%clk 0:02:59.7]}
2... d5 {[%clk 0:03:01.3]} 3. exd5 {[%clk 0:03:00.6]} 3... exd5 {[%clk
0:03:02.2]} 4. Nf3 {[%clk 0:03:00.9]} 4... Nf6 {[%clk 0:03:01.8]} 5. Bd3 {[%clk
0:03:00.9]} 5... Bg4 {[%clk 0:03:02.3]} 6. O-O {[%clk 0:02:59.9]} 6... Be7
{[%clk 0:03:02.9]} 7. h3 {[%clk 0:02:57.9]} 7... Bh5 {[%clk 0:03:03.1]} 8. Bf4
{[%clk 0:02:50.4]} 8... O-O {[%clk 0:03:03]} 9. Nbd2 {[%clk 0:02:49.3]} 9... c6
{[%clk 0:03:03.3]} 10. c3 {[%clk 0:02:49.4]} 10... Nbd7 {[%clk 0:02:58.4]} 11.
Re1 {[%clk 0:02:49.1]} 11... Re8 {[%clk 0:02:59]} 12. Qb3 {[%clk 0:02:48.7]}
12... b6 {[%clk 0:02:57.3]} 13. Ne5 {[%clk 0:02:48.7]} 13... Nxe5 {[%clk
0:02:56.8]} 14. Bxe5 {[%clk 0:02:44.7]} 14... Nd7 {[%clk 0:02:53.6]} 15. Bh2
{[%clk 0:02:44.7]} 15... Bg6 {[%clk 0:02:49.6]} 16. Bf1 {[%clk 0:02:41.8]} 16...
Nf6 {[%clk 0:02:45.9]} 17. Nf3 {[%clk 0:02:41.1]} 17... Bd6 {[%clk 0:02:45.9]}
18. Ne5 {[%clk 0:02:38]} 18... c5 {[%clk 0:02:41.3]} 19. Bb5 {[%clk 0:02:36.4]}
19... Rf8 {[%clk 0:02:36.6]} 20. Bf4 {[%clk 0:02:13.8]} 20... Qc7 {[%clk
0:02:35.3]} 21. Bf1 {[%clk 0:01:59.6]} 21... Rfe8 {[%clk 0:02:27.6]} 22. Qa4
{[%clk 0:01:54.1]} 22... Re6 {[%clk 0:02:12]} 23. Nxg6 {[%clk 0:01:48.2]} 23...
Rxe1 {[%clk 0:01:59.7]} 24. Rxe1 {[%clk 0:01:29.2]} 24... hxg6 {[%clk
0:01:55.8]} 25. Bxd6 {[%clk 0:01:19.4]} 25... Qxd6 {[%clk 0:01:56.7]} 26. dxc5
{[%clk 0:01:18.4]} 26... bxc5 {[%clk 0:01:57.6]} 27. b4 {[%clk 0:01:09.7]} 27...
cxb4 {[%clk 0:01:49.4]} 28. Qxb4 {[%clk 0:01:09.1]} 28... Qb6 {[%clk 0:01:32.4]}
29. Rb1 {[%clk 0:01:01.7]} 29... Ne4 {[%clk 0:01:25.4]} 30. Rb2 {[%clk
0:00:37.1]} 30... Rc8 {[%clk 0:00:51.6]} 31. Qxb6 {[%clk 0:00:20]} 31... axb6
{[%clk 0:00:52.5]} 32. Rxb6 {[%clk 0:00:19.1]} 32... Rxc3 {[%clk 0:00:52.1]} 33.
f3 {[%clk 0:00:11]} 33... Nd2 {[%clk 0:00:48]} 34. Rb8+ {[%clk 0:00:10.9]} 34...
Kh7 {[%clk 0:00:47.7]} 35. Bb5 {[%clk 0:00:11]} 35... Rc1+ {[%clk 0:00:47.1]}
36. Kf2 {[%clk 0:00:10.7]} 36... Rb1 {[%clk 0:00:43.5]} 37. a4 {[%clk
0:00:10.6]} 37... Nc4 {[%clk 0:00:42.9]} 38. g4 {[%clk 0:00:07.6]} 38... Rb2+
{[%clk 0:00:41.1]} 39. Ke1 {[%clk 0:00:07.1]} 39... g5 {[%clk 0:00:40.2]} 40.
Rd8 {[%clk 0:00:06.7]} 40... Ne5 {[%clk 0:00:36.7]} 41. Rxd5 {[%clk 0:00:04.9]}
41... Nxf3+ {[%clk 0:00:37.2]} 42. Kd1 {[%clk 0:00:05.3]} 42... f6 {[%clk
0:00:21.1]} 43. Bd3+ {[%clk 0:00:05.6]} 43... Kg8 {[%clk 0:00:20.5]} 44. Bg6
{[%clk 0:00:05.8]} 44... Rb8 {[%clk 0:00:18.2]} 45. a5 {[%clk 0:00:05.3]} 45...
Ne5 {[%clk 0:00:18.8]} 46. Bf5 {[%clk 0:00:05.4]} 46... Kf7 {[%clk 0:00:18.4]}
47. a6 {[%clk 0:00:05.7]} 47... Ra8 {[%clk 0:00:19]} 48. Ra5 {[%clk 0:00:05.5]}
48... Ra7 {[%clk 0:00:18.2]} 49. Be4 {[%clk 0:00:05]} 49... Ke7 {[%clk
0:00:18.2]} 50. Bb7 {[%clk 0:00:04.8]} 50... Kd6 {[%clk 0:00:17.9]} 51. Rd5+
{[%clk 0:00:05.3]} 51... Kc7 {[%clk 0:00:18.4]} 52. Ke2 {[%clk 0:00:05.7]} 52...
Nf7 {[%clk 0:00:09.6]} 53. Ke3 {[%clk 0:00:05.7]} 53... Nd6 {[%clk 0:00:10.2]}
54. Rc5+ {[%clk 0:00:05.8]} 54... Kd7 {[%clk 0:00:09.7]} 55. Rd5 {[%clk
0:00:05.5]} 55... Kc7 {[%clk 0:00:10.3]} 56. Rc5+ {[%clk 0:00:06]} 56... Kd7
{[%clk 0:00:10.9]} 57. Bc6+ {[%clk 0:00:05.7]} 57... Kc7 {[%clk 0:00:10.5]} 58.
Bf3+ {[%clk 0:00:04.6]} 58... Kd7 {[%clk 0:00:10.2]} 59. Be2 {[%clk 0:00:05]}
59... Ke6 {[%clk 0:00:07]} 60. Ra5 {[%clk 0:00:05.2]} 60... Nc8 {[%clk
0:00:05.6]} 61. Ra4 {[%clk 0:00:05.8]} 61... Nb6 {[%clk 0:00:05.9]} 62. Re4+
{[%clk 0:00:06.5]} 62... Kd6 {[%clk 0:00:05.9]} 63. Kd4 {[%clk 0:00:06.7]} 63...
Nd5 {[%clk 0:00:06.8]} 64. Re8 {[%clk 0:00:06.4]} 64... Nc7 {[%clk 0:00:06.2]}
65. Rg8 {[%clk 0:00:06.6]} 65... Nxa6 {[%clk 0:00:05.2]} 66. Rd8+ {[%clk
0:00:07]} 66... Ke6 {[%clk 0:00:05.6]} 67. Rg8 {[%clk 0:00:07.6]} 67... Nc7
{[%clk 0:00:05.3]} 68. Ke3 {[%clk 0:00:06.2]} 68... Ra4 {[%clk 0:00:06.2]} 69.
Rxg7 {[%clk 0:00:06]} 69... Nd5+ {[%clk 0:00:07.1]} 70. Kf2 {[%clk 0:00:06.4]}
70... Ra2 {[%clk 0:00:07.4]} 71. Kf3 {[%clk 0:00:06.5]} 71... Ra3+ {[%clk
0:00:07.2]} 72. Kf2 {[%clk 0:00:06.6]} 72... Ra2 {[%clk 0:00:08.1]} 73. Ke1
{[%clk 0:00:07.2]} 73... Nf4 {[%clk 0:00:08.7]} 74. Bc4+ {[%clk 0:00:07.5]}
74... Ke5 {[%clk 0:00:08.8]} 75. Bxa2 {[%clk 0:00:08.4]} 75... Nxh3 {[%clk
0:00:09.3]} 76. Ke2 {[%clk 0:00:08.5]} 76... Kf4 {[%clk 0:00:08.8]} 77. Be6
{[%clk 0:00:07.9]} 77... Ng1+ {[%clk 0:00:08.3]} 78. Kf2 {[%clk 0:00:07.9]}
78... Nf3 {[%clk 0:00:09.2]} 79. Bf5 {[%clk 0:00:08.4]} 79... Nd4 {[%clk
0:00:09.3]} 80. Ra7 {[%clk 0:00:09.2]} 80... Nc2 {[%clk 0:00:08.5]} 81. Bxc2
{[%clk 0:00:08.7]} 1-0